bitfinex-derivatives/quotes_ETHF0:USTF0_20240922
["timestamp","ask_amount","ask_price","bid_price","bid_amount"]
[1727021454996,3.2078,2564.0,2563.5,4.04726]
[1727021455399,2.5978,2564.0,2563.7,8.15209888]
[1727021455605,3.2078,2564.3,2563.7,3.43003]
[1727021455909,3.2078,2564.3,2563.8,5.06592122]
[1727021457208,3.59775,2564.3,2563.8,5.06592122]
[1727021457706,3.2078,2564.3,2563.8,5.06592122]
[1727021459799,3.59775,2564.3,2563.8,5.06592122]
[1727021460219,3.59775,2564.3,2563.9,0.3849]
[1727021460812,3.2078,2564.3,2563.9,0.3849]
[1727021461708,3.59775,2564.3,2563.9,0.3849]
[1727021461913,3.2078,2564.3,2563.9,0.3849]
[1727021462111,3.2078,2564.3,2563.9,0.7749]
[1727021462309,3.2078,2564.6,2564.2,3.42995]
[1727021462517,3.2078,2564.6,2564.2,6.298]
[1727021462518,3.59771,2564.6,2564.2,6.298]
[1727021462714,3.59771,2564.6,2564.2,3.258]
[1727021463107,3.59771,2564.6,2564.3,3.04]
[1727021463108,3.2078,2564.6,2564.3,3.04]
[1727021463312,3.59767,2564.9,2564.3,8.77454488]
[1727021463918,3.2078,2564.9,2564.4,0.38993]
[1727021464222,3.59766,2564.9,2564.5,3.04]
[1727021464414,3.59766,2564.9,2564.6,0.3859]
[1727021464816,3.2078,2564.9,2564.6,0.3859]
[1727021465022,3.59765,2564.9,2564.6,0.3859]
[1727021465823,3.2078,2564.9,2564.6,0.77579]
[1727021466514,3.59766,2564.9,2564.6,0.3859]
[1727021466715,0.38988,2564.8,2564.6,0.3859]
[1727021467215,0.38988,2564.7,2564.6,0.3859]
[1727021467716,0.38988,2564.8,2564.6,0.3859]
[1727021468513,3.59766,2564.9,2564.6,0.3859]
[1727021468718,0.38987,2564.8,2564.6,0.3859]
[1727021469723,3.59766,2564.9,2564.6,0.3859]
[1727021470130,3.2078,2564.9,2564.6,0.3859]
[1727021470608,3.2078,2564.9,2564.6,0.7758]
[1727021473228,3.2078,2564.9,2564.6,0.6696]
[1727021474315,3.2078,2564.9,2564.6,0.2797]
[1727021474516,3.2078,2564.9,2564.6,0.66959]
[1727021476330,3.2078,2564.9,2564.6,0.2797]
[1727021476519,3.59766,2564.9,2564.6,0.2797]
[1727021477028,3.2078,2564.9,2564.6,0.66959]
[1727021477626,3.59766,2564.9,2564.6,0.66959]
[1727021478218,3.2078,2564.9,2564.6,0.66959]
[1727021479430,3.2078,2564.9,2564.7,0.38988]
[1727021479627,3.2078,2564.9,2564.6,0.66959]
[1727021480138,0.38985,2565.0,2564.6,0.66959]
[1727021480139,3.2078,2564.8,2564.6,0.66959]
[1727021482226,3.2078,2564.8,2564.7,0.38988]
[1727021483025,3.2078,2564.8,2564.6,0.66959]
[1727021484928,3.2078,2564.8,2564.3,3.4222]
[1727021484929,0.38991,2564.6,2564.3,0.3822]
[1727021485128,3.2078,2564.4,2564.3,0.38994]
[1727021485341,3.2078,2564.4,2564.2,0.75646]
[1727021485831,3.2078,2564.4,2564.3,0.38995]
[1727021486637,3.2078,2564.4,2564.3,4.28995]
[1727021486838,3.2078,2564.4,2564.3,0.38995]
[1727021487341,3.2078,2564.4,2564.3,4.28995]
[1727021487828,3.2078,2564.4,2564.3,0.38995]
[1727021488024,3.2078,2564.4,2564.3,4.28995]
[1727021488231,3.2078,2564.4,2564.3,0.38995]
[1727021488644,3.2078,2564.4,2564.3,3.9]
[1727021488934,3.2078,2564.4,2564.2,0.75645]
[1727021489135,3.2078,2564.4,2564.2,4.65645]
[1727021489337,3.2078,2564.4,2564.2,0.75645]
[1727021489737,3.2078,2564.4,2564.3,0.38995]
[1727021489934,3.2078,2564.4,2564.2,0.75645]
[1727021490138,3.59774,2564.4,2564.2,0.3665]
[1727021490331,3.2078,2564.4,2564.2,0.3665]
[1727021490535,3.59773,2564.4,2564.2,0.3665]
[1727021492247,11.12263,2564.4,2563.6,3.59785]
[1727021492438,1.39923343,2564.6,2563.6,0.4015]
[1727021492439,3.2078,2563.8,2563.6,0.4015]
[1727021492645,3.2078,2563.8,2563.7,0.39004]
[1727021493037,3.6136,2564.1,2563.7,3.9008]
[1727021493242,3.2078,2564.1,2564.0,0.38999]
[1727021495546,1.00683343,2564.3,2564.1,0.38996]
[1727021495745,1.00683343,2564.3,2564.2,0.3982]
[1727021497648,1.00683343,2564.3,2564.2,0.78816]
[1727021497845,1.00683343,2564.3,2564.2,0.3982]
[1727021499347,1.00683343,2564.3,2564.2,0.78816]
[1727021500047,4.21463343,2564.4,2564.3,0.38995]
[1727021500350,4.21463343,2564.4,2564.2,0.78815]
[1727021501445,1.00683343,2564.3,2564.2,0.78815]
[1727021503546,1.00683343,2564.3,2564.2,0.78816]
[1727021504052,4.71805015,2564.4,2564.3,0.38995]
[1727021504053,4.21463343,2564.4,2564.3,0.38995]
[1727021504548,4.21463343,2564.7,2564.6,0.3899]
[1727021504850,2.0155338,2564.9,2564.6,0.3899]
[1727021504851,1.00683343,2564.9,2564.8,0.38987]
[1727021505046,1.51025015,2565.0,2564.9,0.38985]
[1727021505641,1.01408846,2565.0,2564.9,0.38985]
[1727021505842,1.01408846,2565.1,2565.0,0.38984]
[1727021508854,1.01408846,2565.1,2565.0,4.28824]
[1727021509154,1.01408846,2565.2,2565.1,0.38982]
[1727021509357,1.01408846,2565.3,2565.2,0.38981]
[1727021509651,1.01408846,2565.4,2565.2,0.3755]
[1727021509847,1.01408846,2565.5,2565.3,0.38979]
[1727021510246,1.01408846,2565.5,2565.4,0.38978]
[1727021510440,4.71805015,2565.6,2565.5,0.38976]
[1727021510441,4.22188846,2565.6,2565.5,0.38976]
[1727021510650,2.0155338,2565.8,2565.7,0.38973]
[1727021510651,1.01408846,2565.8,2565.7,0.38973]
[1727021510953,1.01408846,2565.9,2565.7,0.38973]
[1727021511156,1.01408846,2565.9,2565.8,0.4018]
[1727021511457,1.01408846,2566.0,2565.8,0.4018]
[1727021512057,1.40377846,2566.0,2565.8,0.4018]
[1727021512346,1.01408846,2565.9,2565.8,0.4018]
[1727021512549,1.40378846,2566.0,2565.8,0.4018]
[1727021512851,1.01408846,2565.9,2565.8,0.4018]
[1727021513050,1.40378846,2565.9,2565.8,0.4018]
[1727021513257,1.40377846,2566.0,2565.8,0.4018]
[1727021514346,0.38969,2566.0,2565.8,0.4018]
[1727021516645,3.2078,2565.9,2565.8,0.4018]
[1727021517852,3.5975,2565.9,2565.8,0.4018]
[1727021526460,3.2078,2565.9,2565.8,0.4018]
[1727021526660,3.5975,2565.9,2565.8,0.4018]
[1727021528062,3.2078,2565.9,2565.8,0.4018]
[1727021528455,3.2078,2565.9,2565.3,0.79478]
[1727021528667,3.59755,2565.6,2565.4,0.3805]
[1727021528963,0.38976,2565.5,2565.4,0.3805]
[1727021529261,0.78886,2565.5,2565.4,0.3805]
[1727021531164,0.3991,2565.5,2565.4,0.3805]
[1727021531476,3.688,2565.9,2565.4,0.3805]
[1727021531669,0.78882,2565.8,2565.4,0.77027]
[1727021531874,0.38974,2565.7,2565.4,0.77027]
[1727021532060,0.3991,2565.8,2565.4,0.3805]
[1727021532369,0.3991,2565.8,2565.6,0.38975]
[1727021532670,0.3991,2565.8,2565.6,0.38974]
[1727021532864,0.78882,2565.8,2565.5,0.78215]
[1727021533069,0.3991,2565.8,2565.6,0.38975]
[1727021533572,0.78882,2565.8,2565.5,0.78215]
[1727021533963,0.78882,2565.8,2565.6,0.38975]
[1727021535679,0.3991,2565.8,2565.6,0.38975]
[1727021537573,0.78882,2565.8,2565.6,0.38975]
[1727021537761,0.3991,2565.8,2565.6,0.38975]
[1727021538471,3.2078,2565.4,2564.6,0.97474]
[1727021538669,3.2078,2565.4,2563.8,0.196]
[1727021538670,9.11989,2564.7,2563.8,0.196]
[1727021538871,3.2078,2564.2,2563.4,0.19650859]
[1727021539170,3.04,2564.4,2563.4,5.41403686]
[1727021539171,3.2078,2563.9,2563.4,5.41403686]
[1727021539379,3.2078,2563.9,2563.4,5.61271003]
[1727021539679,3.2078,2563.9,2563.5,3.9008]
[1727021539974,3.2078,2563.9,2563.5,8.92476686]
[1727021541470,3.2078,2563.9,2563.5,5.02396686]
[1727021541672,3.2078,2563.9,2563.6,0.7727]
[1727021542174,3.2078,2563.9,2563.6,4.6735]
[1727021542374,3.2078,2563.9,2563.6,0.7727]
[1727021545081,3.2078,2563.9,2563.1,1.908]
[1727021545082,4.04993376,2563.7,2563.1,1.908]
[1727021545286,6.2478,2563.2,2563.1,1.908]
[1727021545483,6.2478,2563.2,2562.7,0.7871]
[1727021548272,6.63792,2563.2,2562.7,0.7871]
[1727021548475,6.2478,2562.9,2562.7,0.7871]
[1727021548782,0.3902,2562.6,2562.1,1.908]
[1727021548976,3.04,2562.3,2562.1,0.3668]
[1727021550174,3.2078,2562.4,2562.1,0.3668]
[1727021552678,3.2078,2562.4,2562.2,6.9432]
[1727021552875,3.2078,2562.7,2562.2,12.34669834]
[1727021553088,3.2078,2562.7,2562.2,8.44349834]
[1727021553288,3.2078,2562.7,2562.2,8.05323834]
[1727021553481,3.2078,2563.0,2562.6,3.04]
[1727021553680,3.2078,2563.3,2562.9,3.04]
[1727021554183,3.2078,2563.3,2563.0,0.3937]
[1727021556677,3.59791,2563.3,2563.0,0.3937]
[1727021558293,3.2078,2563.3,2563.0,0.3937]
[1727021560580,3.5979,2563.3,2563.0,0.3937]
[1727021560783,3.2078,2563.3,2563.0,0.3937]
[1727021560994,3.59791,2563.3,2562.7,3.43018]
[1727021561696,0.78341,2563.2,2562.7,3.43018]
[1727021562190,0.3933,2563.2,2562.7,3.43018]
[1727021562394,0.3933,2563.2,2562.8,0.39017]
[1727021562694,0.3933,2563.2,2562.7,3.43018]
[1727021563486,0.78342,2563.2,2562.7,3.43018]
[1727021563686,0.39015,2563.0,2562.6,0.3662]
[1727021564091,3.59795,2563.0,2562.6,0.3662]
[1727021564999,0.39016,2562.9,2562.6,0.3662]
[1727021566299,0.39016,2562.9,2562.4,3.43023]
[1727021566494,0.39018,2562.8,2562.3,0.39024]
[1727021566700,3.2078,2562.7,2562.3,0.39024]
[1727021566902,3.588,2562.7,2562.3,0.39024]
[1727021567600,3.588,2562.7,2562.2,3.4384]
[1727021568002,3.588,2562.7,2562.3,0.39024]
[1727021568696,3.588,2562.7,2562.4,0.39023]
[1727021568898,3.5772,2563.2,2562.4,3.04]
[1727021569101,0.3908,2563.1,2562.7,0.39018]
[1727021569305,0.3908,2563.1,2562.7,0.3788]
[1727021569506,0.3908,2563.1,2562.8,0.77277]
[1727021570190,0.3908,2563.1,2562.9,0.39015]
[1727021570498,0.3908,2563.1,2562.8,3.4226]
[1727021570703,0.3908,2563.1,2562.9,0.39015]
[1727021570897,0.3908,2563.1,2563.0,0.39014]
[1727021571402,0.3908,2563.1,2562.8,3.4226]
[1727021571806,0.3908,2563.1,2562.8,0.3826]
[1727021572493,3.2078,2563.2,2562.8,0.3826]
[1727021572494,3.2078,2563.2,2562.9,3.43015]
[1727021572693,3.2078,2563.2,2563.0,0.39014]
[1727021573202,0.79248,2563.5,2563.0,0.39014]
[1727021574098,3.2078,2563.3,2562.9,3.43015]
[1727021575202,3.2078,2563.3,2563.0,0.39014]
[1727021575406,3.2078,2563.3,2562.9,3.04]
[1727021575798,3.2078,2563.3,2563.0,0.39014]
[1727021576203,0.4024,2563.5,2563.1,0.39012]
[1727021577207,0.79247,2563.5,2563.1,0.39012]
[1727021577409,0.79247,2563.5,2563.0,0.39014]
[1727021577999,0.4024,2563.5,2563.1,0.39012]
[1727021578510,0.79247,2563.5,2563.0,0.39013]
[1727021579704,0.4024,2563.5,2563.1,0.39013]
[1727021580410,0.79247,2563.5,2563.0,0.39014]
[1727021580907,0.79247,2563.5,2563.1,0.39013]
[1727021581303,0.4024,2563.5,2562.9,3.04]
[1727021581504,0.4024,2563.5,2563.1,3.04]
[1727021581707,0.4024,2563.5,2563.3,3.43009]
[1727021581909,0.76153,2563.8,2563.4,0.76018]
[1727021582206,1.16163,2563.8,2563.4,0.76018]
[1727021582616,0.39004,2563.7,2563.4,0.3701]
[1727021582999,0.39007,2563.5,2563.4,0.3701]
[1727021583214,2.75662376,2563.8,2563.2,3.2078]
[1727021583511,3.2078,2563.6,2563.1,3.04]
[1727021583813,0.39008,2563.5,2563.1,3.04]
[1727021584715,4.21773376,2563.6,2563.0,0.3971]
[1727021584716,0.39009,2563.4,2563.0,0.3971]
[1727021585104,0.3892,2563.3,2563.0,0.78724]
[1727021586213,3.597,2563.3,2563.0,0.3971]
[1727021586408,3.98711,2563.3,2563.0,0.3971]
[1727021587209,4.99704376,2563.3,2563.0,0.3971]
[1727021587607,4.60693376,2563.3,2563.0,0.3971]
[1727021587808,4.99704376,2563.3,2563.0,0.3971]
[1727021588315,1.00993376,2563.2,2563.0,0.3971]
[1727021588503,1.40005376,2563.2,2563.0,0.3971]
[1727021588703,0.39013,2563.1,2562.8,3.2078]
[1727021589213,1.40006376,2563.1,2562.8,3.2078]
[1727021589416,0.39013,2563.1,2562.8,3.2078]
[1727021589716,1.40006376,2563.1,2562.8,3.2078]
[1727021590316,1.00993376,2563.0,2562.8,3.2078]
[1727021591316,1.40006376,2563.1,2562.8,3.2078]
[1727021591907,1.00993376,2563.1,2562.8,3.2078]
[1727021592306,1.00993376,2563.1,2562.5,1.908]
[1727021592307,3.04,2562.9,2562.5,0.11345001]
[1727021592510,3.04,2562.9,2561.4,0.196]
[1727021592511,0.9756,2562.4,2561.4,0.196]
[1727021592714,3.2078,2561.5,2561.4,5.18798363]
[1727021593010,3.2078,2561.5,2561.2,0.392]
[1727021593205,1.01216162,2561.3,2560.1,3.2078]
[1727021593407,3.2078,2560.9,2560.7,0.39049]
[1727021593804,3.2078,2560.9,2560.8,5.18798363]
[1727021596117,4.05209348,2561.4,2560.8,5.18798363]
[1727021596118,3.2078,2561.2,2560.8,5.18798363]
[1727021596311,3.2078,2561.2,2561.0,5.18798363]
[1727021596514,3.59823,2561.2,2560.4,7.40873]
[1727021596713,3.59823,2561.2,2560.9,5.18798363]
[1727021597221,3.2078,2561.2,2560.9,5.18798363]
[1727021597414,3.2078,2561.2,2560.4,7.0182]
[1727021597727,3.2078,2561.2,2561.1,5.18798363]
[1727021604322,3.2078,2561.2,2560.1,1.908]
[1727021604323,17.30267,2561.2,2560.1,1.908]
[1727021604523,3.2078,2560.4,2560.2,5.18798363]
[1727021604818,3.2078,2560.4,2560.3,0.39055]
[1727021605122,3.2078,2560.4,2560.3,5.57853363]
[1727021605323,0.39047,2560.9,2560.3,5.57853363]
[1727021605324,3.2078,2560.7,2560.4,0.39054]
[1727021605528,3.2078,2560.7,2560.4,0.79594]
[1727021605834,3.2078,2560.7,2560.6,5.18798363]
[1727021609225,3.2078,2560.7,2560.6,8.22798363]
[1727021609429,3.2078,2560.7,2560.6,8.61849363]
[1727021610032,3.2078,2560.7,2560.6,5.18798363]
[1727021610522,3.2078,2560.7,2560.6,5.57849363]
[1727021611820,3.2078,2561.0,2560.7,0.39048]
[1727021612119,3.2078,2561.0,2560.7,0.39049]
[1727021612327,3.2078,2561.0,2560.9,5.18798363]
[1727021613738,3.2078,2561.0,2560.5,0.7444]
[1727021613739,6.2478,2561.0,2560.5,0.7444]
[1727021613921,3.43048,2560.8,2560.7,5.18798363]
[1727021614119,0.39049,2560.7,2560.6,5.18798363]
[1727021614326,3.59829,2560.7,2560.6,5.18798363]
[1727021614733,13.1134,2560.7,2560.1,0.3935]
[1727021614924,3.2078,2560.4,2560.2,5.18798363]
[1727021615531,3.2078,2560.4,2560.3,5.18798363]
[1727021616128,3.2078,2560.4,2560.1,0.3935]
[1727021616329,3.59834,2560.4,2560.2,5.18798363]
[1727021616522,3.2078,2560.4,2560.2,5.18798363]
[1727021617339,3.2078,2560.4,2560.3,5.18798363]
[1727021618039,0.39052,2560.6,2560.3,5.18798363]
[1727021618338,0.39052,2560.6,2560.2,0.39056]
[1727021618539,0.39052,2560.6,2560.5,5.18798363]
[1727021620540,3.5983,2560.7,2560.5,5.18798363]
[1727021620730,3.5983,2560.7,2560.6,5.18798363]
[1727021620936,3.5983,2560.7,2560.5,5.18798363]
[1727021621342,0.39051,2560.6,2560.5,5.18798363]
[1727021621544,0.39051,2560.6,2560.2,0.39056]
[1727021621734,3.2078,2560.4,2560.2,5.18798363]
[1727021622037,3.2078,2560.4,2560.3,5.18798363]
[1727021622237,3.2078,2560.4,2560.3,5.57853363]
[1727021622437,3.2078,2560.4,2560.3,5.18798363]
[1727021622834,3.2078,2560.4,2560.3,5.57853363]
[1727021623936,3.2078,2560.4,2560.3,5.18798363]
[1727021624342,3.2078,2560.4,2560.3,5.57853363]
[1727021624544,3.2078,2560.4,2560.3,5.18798363]
[1727021624738,3.2078,2560.4,2560.3,5.57853363]
[1727021628954,3.2078,2560.7,2560.5,0.39052]
[1727021629249,3.2078,2560.7,2560.6,5.18798363]
[1727021631143,6.2478,2561.1,2560.7,0.39048]
[1727021631344,6.63823,2561.1,2561.0,5.18798363]
[1727021631543,0.39045,2561.0,2560.8,5.18798363]
[1727021633050,6.2478,2561.1,2560.9,5.18798363]
[1727021633245,6.63824,2561.1,2560.9,5.18798363]
[1727021633756,3.59824,2561.1,2561.0,5.18798363]
[1727021635460,3.59823,2561.1,2561.0,5.18798363]
[1727021635848,6.63823,2561.1,2560.7,0.39048]
[1727021636054,3.2078,2560.8,2560.6,0.7873]
[1727021636261,3.2078,2560.8,2560.7,0.39049]
[1727021636450,3.2078,2560.8,2560.7,5.57847363]
[1727021636655,0.39045,2561.0,2560.7,5.57847363]
[1727021636854,0.39045,2561.0,2560.9,5.18798363]
[1727021637049,7.65033348,2561.1,2560.9,5.18798363]
[1727021637254,7.25989348,2561.1,2560.9,5.18798363]
[1727021637454,1.51824244,2561.0,2560.9,5.18798363]
[1727021637662,1.90869244,2561.0,2560.9,5.18798363]
[1727021638051,1.51824244,2561.0,2560.9,5.18798363]
[1727021638259,1.90869244,2561.0,2560.9,5.18798363]
[1727021638461,5.73825428,2561.1,2560.9,5.57843363]
[1727021638668,5.23327142,2561.1,2561.0,5.18798363]
[1727021638858,3.2078,2561.1,2561.0,5.18798363]
[1727021639058,5.62370142,2561.1,2561.0,5.18798363]
[1727021639558,5.62370142,2561.1,2560.2,1.1801]
[1727021639559,19.31814514,2561.1,2560.2,1.1801]
[1727021639858,1.01269252,2560.5,2560.3,1.04662739]
[1727021640056,1.01269252,2560.5,2560.4,0.56284697]
[1727021640262,1.01269252,2560.5,2560.4,6.1413706]
[1727021641166,1.01269252,2560.5,2560.4,6.62516001]
[1727021641365,1.01269252,2560.5,2560.4,6.1413706]
[1727021643270,1.01269252,2560.5,2560.4,5.57852363]
[1727021645267,1.51898229,2560.6,2560.4,5.57852363]
[1727021645567,5.23314323,2560.7,2560.5,5.18798363]
[1727021645760,5.23314323,2560.7,2560.6,5.18798363]
[1727021646766,5.62363323,2560.7,2560.6,5.18798363]
[1727021647362,0.97628,2560.6,2560.2,1.1801]
[1727021647566,3.2078,2560.4,2560.3,5.18798363]
[1727021647761,5.23345338,2560.4,2560.3,5.18798363]
[1727021647962,5.23345338,2560.4,2560.3,5.57853363]
[1727021648162,4.72708659,2560.4,2560.3,5.18798363]
[1727021648474,4.72708659,2560.4,2560.3,5.57853363]
[1727021648769,4.72708659,2560.4,2560.3,5.18798363]
[1727021649164,1.51928659,2560.4,2560.3,5.18798363]
[1727021649363,2.41620338,2560.4,2560.2,1.1801]
[1727021649569,1.90987738,2560.3,2560.2,6.36808363]
[1727021649878,0.39055,2560.3,2560.2,6.36808363]
[1727021650171,0.39055,2560.3,2559.8,1.908]
[1727021650172,3.2078,2560.3,2559.8,1.908]
[1727021650362,7.76669071,2560.0,2559.8,0.7414]
[1727021650564,0.39062,2559.9,2559.8,5.18798363]
[1727021651267,0.39062,2559.9,2559.4,2.2809]
[1727021651268,8.77986673,2560.0,2559.4,1.908]
[1727021651470,1.01183406,2559.6,2559.4,2.29869]
[1727021652072,1.01183406,2559.6,2559.5,5.57866363]
[1727021652267,1.01183406,2559.7,2559.5,5.57866363]
[1727021652465,1.01183406,2559.7,2559.6,5.57864363]
[1727021652666,1.01183406,2559.7,2559.6,5.18798363]
[1727021653068,1.5177511,2559.9,2559.6,5.18798363]
[1727021653069,1.01183406,2559.8,2559.6,5.18798363]
[1727021653270,1.01121867,2559.8,2559.7,5.18798363]
[1727021655979,1.01121867,2559.9,2559.7,5.18798363]
[1727021656175,1.01121867,2559.9,2559.8,5.95718363]
[1727021658282,4.60961867,2560.0,2559.8,5.95718363]
[1727021658470,4.60961867,2560.0,2559.9,5.18798363]
[1727021658775,4.21901867,2560.0,2559.9,5.18798363]
[1727021659168,1.01121867,2560.2,2559.9,5.18798363]
[1727021659368,4.7255511,2560.3,2559.9,5.18798363]
[1727021659369,1.01121867,2560.4,2560.1,5.18798363]
[1727021659571,1.01121867,2560.4,2560.3,5.18798363]
[1727021659975,1.01121867,2560.4,2560.3,5.56458363]
[1727021661176,1.40114859,2560.4,2560.3,5.56458363]
[1727021661380,3.04,2560.4,2560.0,0.3766]
[1727021661682,0.39059,2560.1,2560.0,0.3766]
[1727021662074,0.39059,2560.1,2560.0,5.56458363]
[1727021662669,4.44118962,2560.1,2560.0,5.18798363]
[1727021663574,7.95699962,2560.1,2559.6,0.3941]
[1727021663767,1.40121962,2559.9,2559.8,5.18798363]
[1727021664171,0.39065,2559.7,2559.6,0.3941]
[1727021664577,0.39065,2559.7,2559.6,5.58208363]
[1727021664774,1.40095993,2559.8,2559.6,5.58208363]
[1727021664973,0.39064,2559.8,2559.7,5.18798363]
[1727021665572,12.8994,2559.8,2558.9,1.53443901]
[1727021665772,8.15319538,2559.0,2558.9,5.18798363]
[1727021665976,7.76244538,2559.0,2558.6,1.1498]
[1727021666173,3.4308,2558.7,2558.6,1.1498]
[1727021666374,6.2478,2558.7,2558.6,6.34269363]
[1727021666571,6.2478,2558.7,2558.6,5.95188363]
[1727021666886,6.6386,2558.7,2558.6,5.95188363]
[1727021667187,16.1558,2558.7,2558.1,0.3859]
[1727021667477,6.2478,2558.7,2558.5,5.18798363]
[1727021667881,6.2478,2558.7,2558.5,5.57881363]
[1727021668276,6.2478,2558.7,2558.5,5.18798363]
[1727021668583,6.2478,2558.7,2558.6,5.18798363]
[1727021672685,6.6386,2558.7,2558.6,5.18798363]
[1727021673680,6.2478,2558.7,2558.6,5.18798363]
[1727021673872,6.6386,2558.7,2558.6,5.18798363]
[1727021674476,6.2478,2558.7,2558.6,5.18798363]
[1727021674881,6.6386,2558.7,2558.6,5.18798363]
[1727021678880,6.2478,2558.7,2558.2,0.4046]
[1727021679081,0.39083,2558.6,2558.5,5.18798363]
[1727021684891,1.36787,2558.6,2558.5,5.18798363]
[1727021685083,1.36787,2558.6,2557.7,3.2078]
[1727021685084,10.29963,2558.6,2557.7,3.2078]
[1727021685394,6.63867,2558.3,2558.2,5.18798363]
[1727021686390,3.04,2558.5,2558.2,5.57886363]
[1727021686591,3.43084,2558.5,2558.4,5.18798363]
[1727021687384,3.04,2558.5,2558.4,5.18798363]
[1727021687587,3.43083,2558.5,2558.4,5.18798363]
[1727021687988,3.2078,2558.7,2558.4,5.57882363]
[1727021688193,6.2478,2558.7,2558.6,5.18798363]
[1727021688496,6.2478,2558.7,2557.7,0.97736]
[1727021688497,17.20282,2558.7,2557.5,3.2078]
[1727021688687,0.39092,2558.0,2557.8,5.55448363]
[1727021688886,6.2478,2558.1,2557.8,5.55448363]
[1727021689083,6.2478,2558.1,2557.8,5.94541363]
[1727021689298,6.2478,2558.5,2558.0,5.18798363]
[1727021689598,6.63864,2558.5,2558.3,5.18798363]
[1727021690091,6.2478,2558.5,2558.3,5.18798363]
[1727021690295,6.2478,2558.5,2558.1,0.4032]
[1727021690499,3.04,2558.2,2558.1,0.4032]
[1727021690800,3.43085,2558.4,2558.3,5.18798363]
[1727021690985,3.04,2558.4,2558.2,5.18798363]
[1727021691191,3.43085,2558.4,2558.3,5.18798363]
[1727021691589,3.04,2558.4,2558.3,5.18798363]
[1727021691989,3.2078,2558.5,2558.4,0.39084]
[1727021692192,3.2078,2558.5,2558.4,5.18798363]
[1727021693900,3.59863,2558.5,2558.4,5.18798363]
[1727021695500,0.39084,2558.4,2558.1,0.79408]
[1727021695694,3.43084,2558.4,2558.3,5.18798363]
[1727021698204,3.04,2558.4,2558.3,5.18798363]
[1727021698409,3.43084,2558.4,2558.3,5.18798363]
[1727021700201,3.43084,2558.4,2557.6,1.908]
[1727021700202,12.9488,2558.4,2557.6,1.908]
[1727021700405,3.2078,2558.1,2557.9,0.3864]
[1727021701199,0.39091,2558.0,2557.9,0.3864]
[1727021701596,0.39094,2557.8,2557.7,0.3879]
[1727021701797,6.63874,2557.8,2557.7,0.3879]
[1727021702604,3.2078,2558.1,2557.7,5.57588363]
[1727021702906,6.2478,2558.4,2558.2,0.39088]
[1727021703202,6.2478,2558.4,2558.3,5.95118363]
[1727021704494,6.63864,2558.4,2558.3,5.95118363]
[1727021704906,6.2478,2558.4,2558.3,5.95118363]
[1727021705207,6.63864,2558.4,2558.3,0.7632]
[1727021705400,6.63864,2558.4,2558.3,5.95118363]
[1727021705914,6.2478,2558.4,2558.3,5.95118363]
[1727021706703,6.63864,2558.4,2558.3,5.95118363]
[1727021707001,6.2478,2558.4,2558.3,5.95118363]
[1727021707398,3.04,2558.5,2558.3,6.34204363]
[1727021707609,3.04,2558.5,2558.3,0.7632]
[1727021707811,4.21128009,2558.7,2558.3,0.7632]
[1727021707812,4.21128009,2558.7,2558.5,0.39082]
[1727021708005,3.04,2558.6,2558.4,0.39083]
[1727021708205,3.04,2558.6,2558.3,0.7632]
[1727021708206,3.04,2558.6,2558.5,5.18798363]
[1727021708413,3.04,2558.6,2558.5,5.57881363]
[1727021708615,3.04,2558.6,2558.5,5.18798363]
[1727021709200,3.04,2558.6,2558.5,5.57881363]
[1727021709400,3.04,2558.6,2558.5,5.18798363]
[1727021709603,4.44067613,2558.6,2558.5,5.18798363]
[1727021709899,4.54513497,2558.6,2558.5,5.18798363]
[1727021710112,4.04982285,2558.6,2558.5,5.18798363]
[1727021710405,4.54513497,2558.6,2558.5,5.18798363]
[1727021711202,3.04,2558.6,2558.5,5.57881363]
[1727021711409,4.54513497,2558.6,2558.5,5.57881363]
[1727021711611,3.04,2558.6,2558.5,5.18798363]
[1727021711907,5.45447813,2558.6,2558.5,5.18798363]
[1727021712313,3.04,2558.6,2558.5,5.57881363]
[1727021712504,3.04,2558.6,2558.5,5.18798363]
[1727021713007,5.06366813,2558.6,2558.5,5.57881363]
[1727021713407,3.04,2558.6,2558.5,5.57881363]
[1727021714310,2.93032606,2559.0,2558.8,0.97697]
[1727021714500,3.2078,2559.7,2559.6,0.39066]
[1727021714702,3.542636,2560.3,2559.9,0.39061]
[1727021714703,3.2078,2560.3,2559.9,0.39061]
[1727021714914,3.2078,2560.3,2559.6,4.06392598]
[1727021715213,0.39058,2560.2,2559.9,0.39062]
[1727021715408,3.2078,2560.3,2559.5,4.23172598]
[1727021715409,3.04,2560.0,2559.5,4.23172598]
[1727021715598,3.2078,2560.0,2559.5,3.04]
[1727021715802,3.04,2560.2,2559.9,0.39062]
[1727021716008,3.43058,2560.2,2559.9,0.39062]
[1727021716208,3.43058,2560.2,2559.6,3.2078]
[1727021716401,3.2078,2560.3,2560.1,0.39059]
[1727021716607,0.39055,2560.4,2560.1,0.39058]
[1727021717207,3.2078,2560.6,2559.9,3.04]
[1727021717408,0.39053,2560.5,2560.2,0.39056]
[1727021717911,3.04,2560.4,2560.0,1.1946]
[1727021718112,3.43054,2560.4,2560.1,0.39058]
[1727021718418,3.43054,2560.4,2560.0,1.1946]
[1727021718419,3.04,2560.4,2560.2,0.39057]
[1727021718611,3.04,2560.4,2560.0,1.1946]
[1727021718804,3.2078,2560.6,2560.3,0.39055]
[1727021718805,6.63832,2560.6,2560.3,0.39055]
[1727021719010,3.2078,2560.6,2560.0,4.4024]
[1727021719207,0.7955,2560.7,2560.4,0.39053]
[1727021719901,0.39052,2560.6,2560.3,0.39055]
[1727021720106,0.7955,2560.7,2560.4,0.39054]
[1727021720311,0.7955,2560.7,2560.0,1.1946]
[1727021720515,0.7955,2560.7,2560.4,0.39054]
[1727021721015,0.405,2560.7,2560.0,1.1946]